fUSD/lending_fUSD_20240815
["ID","MTS","AMOUNT","RATE_DAILY","PERIOD"]
[334996002,1723716664701,-1063.67,0.00024399,7]
[334996004,1723716664710,-1063.67,0.00024399,7]
[334996005,1723716664719,-1063.67,0.00024399,7]
[334996007,1723716664729,-1063.67,0.00024399,7]
[334996009,1723716664740,-1063.67,0.00024399,7]
[334996011,1723716664750,-1063.67,0.00024399,7]
[334996013,1723716664761,-1063.67,0.00024399,7]
[334996016,1723716664771,-1063.70962187,0.00024399,7]
[334996018,1723716664781,-1213.51,0.00024399,7]
[334996019,1723716664791,-1213.51,0.00024399,7]
[334996021,1723716664800,-1213.51,0.00024399,7]
[334996023,1723716664809,-1213.51,0.00024399,7]
[334996025,1723716664819,-1213.51,0.00024399,7]
[334996027,1723716664827,-1213.51,0.00024399,7]
[334996029,1723716664836,-1213.51,0.00024399,7]
[334996031,1723716664846,-1213.51,0.00024399,7]
[334996033,1723716664856,-1213.51,0.00024399,7]
[334996035,1723716664866,-1213.51,0.00024399,7]
[334996037,1723716664876,-1213.61032277,0.00024399,7]
[334996038,1723716664885,-4167.01,0.00024399,7]
[334996040,1723716664896,-4167.01,0.00024399,7]
[334996042,1723716664905,-4167.01,0.00024399,7]
[334996044,1723716664914,-4167.01,0.00024399,7]
[334996046,1723716664923,-4167.01,0.00024399,7]
[334996048,1723716664933,-4167.01,0.00024399,7]
[334996050,1723716664943,-4167.01,0.00024399,7]
[334996052,1723716664952,-4167.24950173,0.00024399,7]
[334996054,1723716664962,-246.19,0.00024399,7]
[334996056,1723716664972,-8347.82,0.00024399,7]
[334996059,1723716664982,-8347.82,0.00024399,7]
[334996061,1723716664992,-8347.82,0.00024399,7]
[334996063,1723716665001,-8347.82,0.00024399,7]
[334996065,1723716665011,-8347.82,0.00024399,7]
[334996067,1723716665021,-8347.82,0.00024399,7]
[334996069,1723716665031,-8347.82,0.00024399,7]
[334996071,1723716665041,-8347.82,0.00024399,7]
[334996073,1723716665051,-8347.82,0.00024399,7]
[334996075,1723716665061,-8347.82,0.00024399,7]
[334996077,1723716665071,-8347.95476696,0.00024399,7]
[334996079,1723716665080,-500.0,0.00024399,7]
[334996081,1723716665090,-500.0,0.00024399,7]
[334996083,1723716665099,-1167.64,0.00024399,7]
[334996085,1723716665109,-1167.64,0.00024399,7]
[334996087,1723716665118,-500.0,0.00024399,7]
[334996089,1723716665128,-1167.64,0.00024399,7]
[334996091,1723716665137,-500.0,0.00024399,7]
[334996093,1723716665147,-1167.64,0.00024399,7]
[334996095,1723716665157,-500.0,0.00024399,7]
[334996097,1723716665167,-1167.64,0.00024399,7]
[334996099,1723716665176,-500.0,0.00024399,7]
[334996101,1723716665186,-1167.64,0.00024399,7]
[334996103,1723716665196,-500.0,0.00024399,7]
[334996105,1723716665205,-1167.64,0.00024399,7]
[334996107,1723716665215,-500.0,0.00024399,7]
[334996109,1723716665225,-1167.64,0.00024399,7]
[334996111,1723716665234,-500.0,0.00024399,7]
[334996113,1723716665243,-1167.64,0.00024399,7]
[334996115,1723716665253,-176.73784454,0.00024399,7]
[334996117,1723716665262,-1167.64,0.00024399,7]
[334996119,1723716665271,-1167.74,0.00024399,7]
[334996121,1723716665281,-1361.49,0.00024399,7]
[334996123,1723716665291,-1361.49,0.00024399,7]
[334996125,1723716665300,-1361.49,0.00024399,7]
[334996127,1723716665310,-1361.49,0.00024399,7]
[334996129,1723716665320,-1361.49,0.00024399,7]
[334996131,1723716665330,-1361.49,0.00024399,7]
[334996133,1723716665340,-1361.49,0.00024399,7]
[334996135,1723716665349,-1361.49,0.00024399,7]
[334996137,1723716665360,-1361.49,0.00024399,7]
[334996139,1723716665370,-1361.49,0.00024399,7]
[334996141,1723716665381,-1361.52809117,0.00024399,7]
[334996143,1723716665391,-698.49,0.00024399,7]
[334996145,1723716665401,-698.49,0.00024399,7]
[334996147,1723716665411,-698.49,0.00024399,7]
[334996149,1723716665420,-698.49,0.00024399,7]
[334996151,1723716665429,-698.49,0.00024399,7]
[334996153,1723716665439,-698.49,0.00024399,7]
[334996155,1723716665449,-698.49,0.00024399,7]
[334996157,1723716665460,-698.49,0.00024399,7]
[334996159,1723716665470,-698.49,0.00024399,7]
[334996161,1723716665480,-698.49,0.00024399,7]
[334996163,1723716665490,-1136.14,0.00024399,7]
[334996165,1723716665499,-698.68,0.00024399,7]
[334996167,1723716665508,-1136.14,0.00024399,7]
[334996169,1723716665518,-1136.14,0.00024399,7]
[334996171,1723716665528,-1136.14,0.00024399,7]
[334996173,1723716665538,-1136.14,0.00024399,7]
[334996175,1723716665547,-1136.14,0.00024399,7]
[334996177,1723716665557,-1136.14,0.00024399,7]
[334996179,1723716665569,-1136.14,0.00024399,7]
[334996181,1723716665579,-1136.14,0.00024399,7]
[334996183,1723716665589,-1136.14,0.00024399,7]
[334996185,1723716665598,-1136.16289438,0.00024399,7]
[334996187,1723716665609,-4194.85243539,0.000244,2]
[334996189,1723716665618,-151.0,0.000244,2]
[334996191,1723716665628,-226.0,0.000244,2]
[334996193,1723716665638,-4640599.17640586,0.000244,5]
[334996215,1723716665859,-208762.30438126,0.000244,5]
[334996217,1723716665871,-6438.59633052,0.000244,5]
[334996219,1723716665883,-1206.83348292,0.000244,5]
[334996222,1723716665898,-2774.50728004,0.000244,5]
[334996224,1723716665913,-500.0,0.00024286,2]
[334996226,1723716665922,-360.52906236,0.000244,5]
[334996228,1723716665933,-1748.56626615,0.000244,5]
[334996230,1723716665944,-1120.0285415,0.000244,5]
[334996232,1723716665955,-560.58454009,0.000244,5]
[334996234,1723716665966,-562.53248212,0.000244,5]
[334996237,1723716665986,-216.23077973,0.00022869,2]
[334996239,1723716665996,-893.12,0.00023978,2]
[334996242,1723716666006,-575.17922027,0.000244,5]
[334996249,1723716666071,-438.5695808,0.00015716,2]
[334996291,1723716666560,-1117.99743889,0.00015716,2]
[334996293,1723716666575,-5474.66961644,0.00023771,2]
[334996295,1723716666586,-893.12,0.00023979,2]
[334996297,1723716666596,-893.12,0.00023979,2]
[334996299,1723716666607,-893.12,0.00023979,2]
[334996301,1723716666617,-893.12,0.0002419,2]
[334996303,1723716666627,-500.0,0.00024286,2]
[334996305,1723716666637,-347.85294467,0.00024286,2]
[334996308,1723716666653,-152.14705533,0.00024286,2]
[334996310,1723716666663,-500.0,0.00024286,2]
[334996312,1723716666673,-343.78221705,0.00024368,2]
[334996314,1723716666685,-549.33778295,0.00024368,2]
[334996316,1723716666695,-893.12,0.00024398,2]
[334996318,1723716666705,-893.12,0.00024398,2]
[334996320,1723716666715,-7365.16641705,0.000244,5]
[334996322,1723716666727,-206647.38566352,0.000244,5]
[334996325,1723716666739,-45155.85600992,0.000244,5]
[334996327,1723716666751,-4525.0,0.000244,5]
[334996329,1723716666763,-2325.34922941,0.000244,5]
[334996331,1723716666775,-968.00000004,0.000244,5]
[334996348,1723716666930,-922.62051935,0.00023834,2]
[334996350,1723716666940,-5474.66961644,0.0002395,2]
[334996352,1723716666950,-500.0,0.00024286,2]
[334996354,1723716666960,-500.0,0.00024286,2]
[334996356,1723716666970,-893.12,0.00024398,2]
[334996358,1723716666979,-893.12,0.00024398,2]
[334996360,1723716666989,-893.12,0.00024399,2]
[334996362,1723716666999,-893.12,0.00024399,2]
[334996364,1723716667008,-94.31386421,0.00024399,2]
[335002476,1723717508372,9800355.25432275,0.00011,2]
[335002478,1723717543509,2386.8149171,0.00012938,2]
[335002479,1723717568903,16239.2033906,0.00011,2]
[335002481,1723717579345,2342.45587798,0.00012938,2]
[335002482,1723717681429,7894.09490155,0.0001,2]
[335002483,1723717689891,16239.2033906,0.00012938,2]
[335002487,1723717794481,1674.09294226,0.00012938,2]
[335002495,1723717832214,-155.0,0.00013001,2]
[335002496,1723717832224,-211.03413449,0.00013001,2]
[335002497,1723717832233,-155.0,0.00013052,2]
[335002498,1723717832243,-295.28528212,0.00013086,2]
[335002499,1723717832252,-293.79422022,0.00013086,2]
[335002500,1723717832262,-200.0,0.000131,2]
[335002501,1723717832271,-179.4623719,0.00013292,2]
[335002502,1723717832281,-316.83560636,0.0001385,2]
[335002503,1723717832291,-547.10949943,0.0001387,2]
[335002504,1723717832300,-236.22,0.00013899,2]
[335002505,1723717832310,-156.7,0.00013973,2]
[335002506,1723717832319,-1362.44,0.00014234,2]
[335002507,1723717832329,-531.16504504,0.00014245,2]
[335002508,1723717832338,-200.0,0.0001447,2]
[335002509,1723717832347,-155.00000007,0.00014509,2]
[335002510,1723717832357,-499.99,0.00014517,2]
[335002511,1723717832367,-292.64347517,0.00014517,2]
[335002512,1723717832377,-2342.45587798,0.00014517,2]
[335002513,1723717832386,-300.0,0.0001468,2]
[335002514,1723717832395,-546.93040052,0.00014681,2]
[335002515,1723717832405,-638.76806,0.00015,10]
[335002516,1723717832414,-155.40099641,0.00015,2]
[335002517,1723717832424,-23890.0,0.00015189,2]
[335002518,1723717832433,-172.29,0.00015338,2]
[335002519,1723717832443,-697.83,0.00015362,2]
[335002520,1723717832452,-1000.0,0.00015559,2]
[335002521,1723717832461,-250.0,0.00015597,2]
[335002522,1723717832471,-1154.76,0.00015627,2]
[335002523,1723717832480,-200.0,0.0001563,2]
[335002524,1723717832489,-300.0,0.0001583,2]
[335002525,1723717832499,-2751.0,0.0001583,2]
[335002526,1723717832508,-487.54,0.00015896,2]
[335002527,1723717832518,-250.0,0.00015934,2]
[335002528,1723717832527,-267.44,0.00015995,2]
[335002529,1723717832537,-167.0,0.00016065,2]
[335002530,1723717832546,-420.0,0.00016072,2]
[335002531,1723717832555,-236.22,0.00016163,2]
[335002532,1723717832564,-400.0,0.00016166,2]
[335002533,1723717832574,-236.7,0.00016262,2]
[335002534,1723717832584,-173.97,0.0001655,2]
[335002535,1723717832593,-300.0,0.00016933,2]
[335002536,1723717832602,-150.0,0.00016954,2]
[335002537,1723717832611,-1000.0,0.00017504,2]
[335002538,1723717832620,-1298.83,0.00017561,2]
[335002539,1723717832629,-587.0,0.00017595,2]
[335002540,1723717832639,-165.44,0.00017778,2]
[335002541,1723717832648,-400.0,0.00018187,2]
[335002542,1723717832658,-300.0,0.00018303,2]
[335002543,1723717832667,-236.22,0.00018427,2]
[335002544,1723717832676,-281544.0,0.000188,2]
[335002545,1723717832685,-373.2478114,0.0001919,4]
[335002546,1723717832694,-11500.0,0.000192,3]
[335002547,1723717832704,-853.3095572,0.00019221,2]
[335002548,1723717832713,-523.0,0.00019263,2]
[335002549,1723717832722,-1342.16309202,0.00019331,2]
[335002550,1723717832731,-167.0,0.00019431,2]
[335002551,1723717832740,-1000.0,0.00019449,2]
[335002552,1723717832749,-11500.0,0.000197,5]
[335002553,1723717832759,-1342.16309196,0.00019885,2]
[335002554,1723717832768,-1153.15854152,0.000199,2]
[335002555,1723717832777,-1153.1585415,0.000199,2]
[335002556,1723717832785,-1153.1585415,0.000199,2]
[335002557,1723717832794,-853.30955716,0.00019951,2]
[335002558,1723717832804,-500.0,0.00020083,2]
[335002559,1723717832815,-400.0,0.00020208,2]
[335002560,1723717832824,-186.6239057,0.00020383,4]
[335002561,1723717832833,-500.0,0.00020393,2]
[335002562,1723717832842,-500.0,0.00020427,2]
[335002563,1723717832851,-500.0,0.00020428,2]
[335002564,1723717832860,-1342.16309196,0.00020438,2]
[335002565,1723717832871,-853.30955716,0.00020682,2]
[335002566,1723717832881,-236.22,0.00020691,2]
[335002567,1723717832891,-500.0,0.00020713,2]
[335002568,1723717832901,-1342.16309196,0.00020992,2]
[335002569,1723717832910,-167.0,0.00021035,2]
[335002570,1723717832919,-156.7,0.00021209,2]
[335002571,1723717832929,-500.0,0.00021287,2]
[335002572,1723717832938,-1000.0,0.00021394,2]
[335002573,1723717832948,-853.30955716,0.00021412,2]
[335002574,1723717832957,-500.0,0.00021514,2]
[335002575,1723717832968,-1342.16309196,0.00021545,2]
[335002576,1723717832979,-559.2,0.00021918,2]
[335002577,1723717832988,-154.75,0.00021918,2]
[335002578,1723717832998,-988.59470099,0.00022045,2]
[335002579,1723717833007,-1342.16309196,0.00022099,2]
[335002580,1723717833017,-500.0,0.00022099,2]
[335002581,1723717833026,-500.0,0.00022125,2]
[335002582,1723717833036,-853.30955716,0.00022142,2]
[335002583,1723717833047,-400.0,0.00022229,2]
[335002584,1723717833056,-500.0,0.00022601,2]
[335002585,1723717833066,-167.0,0.00022638,2]
[335002586,1723717833075,-500.0,0.00022649,2]
[335002587,1723717833084,-1342.16309196,0.00022652,2]
[335002588,1723717833093,-500.0,0.00022691,2]
[335002589,1723717833102,-853.30955716,0.00022872,2]
[335002590,1723717833111,-236.22,0.00022955,2]
[335002591,1723717833121,-676.56219276,0.00023069,2]
[335002592,1723717833130,-676.56219276,0.00023069,2]
[335002593,1723717833140,-500.0,0.00023146,2]
[335002594,1723717833149,-2534.18383302,0.00023179,2]
[335002595,1723717833157,-180.0,0.00023205,2]
[335002596,1723717833166,-1342.16309196,0.00023206,2]
[335002597,1723717833175,-367.34377443,0.00023287,2]
[335002598,1723717833184,-3000.0,0.000233,2]
[335002599,1723717833193,-1000.0,0.00023339,2]
[335002600,1723717833203,-1764.72554699,0.00023343,2]
[335002601,1723717833212,-1764.72554699,0.00023343,2]
[335002602,1723717833223,-2110.0,0.00023433,30]
[335002603,1723717833232,-327.27627059,0.00023505,2]
[335002604,1723717833243,-186.6239057,0.00023595,4]
[335002605,1723717833252,-853.30955716,0.00023603,2]
[335002606,1723717833262,-32364.2297,0.00023605,2]
[335002607,1723717833272,-706.5476,0.00023605,2]
[335002608,1723717833282,-217.0,0.00023735,2]
[335002609,1723717833292,-2424.7847,0.00023735,2]
[335002610,1723717833301,-1342.16309196,0.00023759,2]
[335002611,1723717833311,-329.25406875,0.000238,2]
[335002612,1723717833321,-186.6239057,0.00023825,4]
[335002613,1723717833333,-306.03191771,0.00023835,7]
[335002614,1723717833343,-500.0,0.00023835,7]
[335002615,1723717833352,-500.0,0.00023835,7]
[335002616,1723717833361,-500.0,0.00023835,7]
[335002617,1723717833371,-500.0,0.00023835,7]
[335002618,1723717833381,-500.0,0.00023835,7]
[335002619,1723717833391,-500.0,0.00023835,7]
[335002620,1723717833400,-500.0,0.00023835,7]
[335002621,1723717833410,-500.0,0.00023835,7]
[335002622,1723717833420,-500.0,0.00023835,7]
[335002623,1723717833430,-500.0,0.00023835,7]
[335002624,1723717833440,-500.0,0.00023835,7]
[335002625,1723717833450,-500.0,0.00023835,7]
[335002626,1723717833459,-500.0,0.00023835,7]
[335002627,1723717833469,-500.0,0.00023835,7]
[335002628,1723717833479,-500.0,0.00023835,7]
[335002629,1723717833488,-500.0,0.00023835,7]
[335002630,1723717833498,-500.0,0.00023835,7]
[335002631,1723717833508,-498.47386663,0.00023835,7]
[335002632,1723717833518,-540.62,0.00023835,2]
[335002633,1723717833527,-500.0,0.00023877,7]
[335002634,1723717833536,-500.0,0.00023877,7]
[335002635,1723717833545,-500.0,0.00023877,7]
[335002636,1723717833554,-500.0,0.00023877,7]
[335002637,1723717833564,-500.0,0.00023877,7]
[335002638,1723717833573,-529.0,0.00023889,2]
[335002639,1723717833582,-1005.04137241,0.00023911,2]
[335002640,1723717833592,-1139.1723108,0.00023911,2]
[335002641,1723717833601,-2110.0,0.00023933,30]
[335002642,1723717833610,-500.0,0.00023938,2]
[335002643,1723717833619,-866.0,0.00024,4]
[335002644,1723717833628,-1000.0,0.000241,2]
[335002645,1723717833638,-150.0,0.000241,2]
[335002646,1723717833647,-154.75,0.0002411,2]
[335002647,1723717833656,-230.81361269,0.00024131,2]
[335002648,1723717833667,-300.0,0.00024131,2]
[335002649,1723717833676,-155.0,0.00024134,2]
[335002650,1723717833686,-1586.37707,0.0002416,2]
[335002651,1723717833696,-647.16182356,0.00024173,2]
[335002652,1723717833705,-2025.49404849,0.00024201,2]
[335002653,1723717833715,-500.0,0.00024232,2]
[335002654,1723717833724,-150.0,0.00024236,2]
[335002655,1723717833734,-150.0,0.00024239,2]
[335002656,1723717833743,-400.0,0.00024249,2]
[335002657,1723717833753,-540.62,0.00024302,2]
[335002658,1723717833762,-186.6239057,0.00024303,4]
[335002659,1723717833771,-500.0,0.00024312,7]
[335002660,1723717833781,-500.0,0.00024312,7]
[335002661,1723717833790,-1342.16309196,0.00024313,2]
[335002662,1723717833799,-151.49,0.00024323,2]
[335002663,1723717833808,-853.30955716,0.00024333,2]
[335002664,1723717833818,-838.7744707,0.00024333,2]
[335002665,1723717833828,-2766.5570549,0.00024333,2]
[335002666,1723717833840,-150.0,0.0002434,2]
[335002667,1723717833850,-150.0,0.00024357,2]
[335002668,1723717833859,-150.0,0.0002437,2]
[335002669,1723717833869,-200.0,0.00024373,2]
[335002670,1723717833878,-200.0,0.00024373,2]
[335002671,1723717833888,-300.0,0.00024383,5]
[335002672,1723717833898,-59401.6526741,0.0002439,4]
[335002673,1723717833907,-151.49,0.0002439,2]
[335002674,1723717833916,-151.49,0.0002439,2]
[335002675,1723717833925,-151.49,0.0002439,2]
[335002676,1723717833935,-151.49,0.0002439,2]
[335002677,1723717833944,-32175.8951985,0.0002439,4]
[335002678,1723717833953,-151.49,0.0002439,2]
[335002679,1723717833963,-151.49,0.0002439,2]
[335002680,1723717833977,-151.49,0.0002439,2]
[335002681,1723717833986,-151.49,0.0002439,2]
[335002682,1723717833995,-151.49,0.0002439,2]
[335002683,1723717834005,-151.49,0.0002439,2]
[335002684,1723717834016,-151.49,0.0002439,2]
[335002685,1723717834026,-151.49,0.0002439,2]
[335002686,1723717834036,-151.49,0.0002439,2]
[335002687,1723717834046,-151.49,0.0002439,2]
[335002688,1723717834057,-151.49,0.0002439,2]
[335002689,1723717834066,-151.49,0.0002439,2]
[335002690,1723717834076,-151.49,0.0002439,2]
[335002691,1723717834090,-151.49,0.0002439,2]
[335002692,1723717834099,-151.49,0.0002439,2]
[335002693,1723717834109,-151.49,0.0002439,2]
[335002694,1723717834119,-151.49,0.0002439,2]
[335002695,1723717834128,-151.49,0.0002439,2]
[335002696,1723717834138,-151.49,0.0002439,2]
[335002697,1723717834147,-151.49,0.0002439,2]
[335002698,1723717834158,-151.49,0.0002439,2]
[335002699,1723717834168,-151.49,0.0002439,2]
[335002700,1723717834178,-151.49,0.0002439,2]
[335002701,1723717834187,-151.49,0.0002439,2]
[335002702,1723717834197,-151.49,0.0002439,2]
[335002703,1723717834207,-151.49,0.0002439,2]
[335002704,1723717834217,-151.49,0.0002439,2]
[335002705,1723717834226,-151.49,0.0002439,2]
[335002706,1723717834236,-151.49,0.0002439,2]
[335002707,1723717834246,-151.49,0.0002439,2]
[335002708,1723717834256,-151.49,0.0002439,2]
[335002709,1723717834268,-151.49,0.0002439,2]
[335002710,1723717834278,-151.49,0.0002439,2]
[335002711,1723717834288,-151.49,0.0002439,2]
[335002712,1723717834298,-151.49,0.0002439,2]
[335002713,1723717834308,-151.49,0.0002439,2]
[335002714,1723717834318,-151.49,0.0002439,2]
[335002715,1723717834330,-151.49,0.0002439,2]
[335002716,1723717834340,-151.49,0.0002439,2]
[335002717,1723717834350,-151.49,0.0002439,2]
[335002718,1723717834360,-151.49,0.0002439,2]
[335002719,1723717834370,-151.49,0.0002439,2]
[335002720,1723717834380,-151.49,0.0002439,2]
[335002721,1723717834391,-151.49,0.0002439,2]
[335002722,1723717834401,-151.49,0.0002439,2]
[335002723,1723717834412,-151.49,0.0002439,2]
[335002724,1723717834423,-151.49,0.0002439,2]
[335002725,1723717834433,-151.49,0.0002439,2]
[335002726,1723717834443,-151.49,0.0002439,2]
[335002727,1723717834454,-151.49,0.0002439,2]
[335002728,1723717834464,-151.49,0.0002439,2]
[335002729,1723717834474,-151.49,0.0002439,2]
[335002730,1723717834484,-160.95450747,0.00024397,2]
[335002731,1723717834494,-461.31025968,0.00024399,2]
[335002732,1723717834504,-573.10786222,0.00024399,2]
[335002733,1723717834514,-500.0,0.00024399,7]
[335002734,1723717834524,-500.0,0.00024399,7]
[335002735,1723717834535,-500.0,0.00024399,7]
[335002736,1723717834544,-500.0,0.00024399,7]
[335002737,1723717834553,-500.0,0.00024399,7]
[335002738,1723717834563,-500.0,0.00024399,7]
[335002739,1723717834573,-570.24288066,0.00024399,7]
[335002740,1723717834584,-500.0,0.00024399,7]
[335002741,1723717834595,-500.0,0.00024399,7]
[335002742,1723717834605,-356.43765541,0.00024399,7]
[335002743,1723717834615,-500.0,0.00024399,7]
[335002744,1723717834624,-500.0,0.00024399,7]
[335002745,1723717834634,-500.0,0.00024399,7]
[335002746,1723717834644,-500.0,0.00024399,7]
[335002747,1723717834654,-500.0,0.00024399,7]
[335002748,1723717834663,-500.0,0.00024399,7]
[335002749,1723717834673,-500.0,0.00024399,7]
[335002750,1723717834683,-500.0,0.00024399,7]
[335002751,1723717834692,-500.0,0.00024399,7]
[335002752,1723717834701,-517.0670006,0.00024399,7]
[335002753,1723717834711,-508.97674766,0.00024399,7]
[335002754,1723717834721,-193.76004666,0.00024399,7]
[335002755,1723717834731,-500.0,0.00024399,7]
[335002756,1723717834740,-500.0,0.00024399,7]
[335002757,1723717834750,-500.0,0.00024399,7]
[335002758,1723717834759,-500.0,0.00024399,7]
[335002759,1723717834769,-357.27,0.00024399,7]
[335002760,1723717834778,-500.0,0.00024399,7]
[335002761,1723717834787,-500.0,0.00024399,7]
[335002762,1723717834796,-500.0,0.00024399,7]
[335002763,1723717834806,-500.0,0.00024399,7]
[335002764,1723717834815,-500.0,0.00024399,7]
[335002765,1723717834824,-500.0,0.00024399,7]
[335002766,1723717834835,-500.0,0.00024399,7]
[335002767,1723717834845,-500.0,0.00024399,7]
[335002768,1723717834855,-500.0,0.00024399,7]
[335002769,1723717834865,-500.0,0.00024399,7]
[335002770,1723717834876,-500.0,0.00024399,7]
[335002771,1723717834885,-500.0,0.00024399,7]
[335002772,1723717834894,-500.0,0.00024399,7]
[335002773,1723717834904,-481.71,0.00024399,7]
[335002774,1723717834913,-500.0,0.00024399,7]
[335002775,1723717834923,-500.0,0.00024399,7]
[335002776,1723717834933,-500.0,0.00024399,7]
[335002777,1723717834943,-425.2,0.00024399,7]
[335002778,1723717834952,-540.62,0.00024399,2]
[335002779,1723717834962,-540.62,0.00024399,2]
[335002780,1723717834976,-540.62,0.00024399,2]
[335002781,1723717834986,-540.62,0.00024399,2]
[335002782,1723717834995,-540.62,0.00024399,2]
[335002783,1723717835005,-540.62,0.00024399,2]
[335002784,1723717835016,-540.62,0.00024399,2]
[335002785,1723717835026,-540.62,0.00024399,2]
[335002786,1723717835035,-540.62,0.00024399,2]
[335002787,1723717835046,-540.62,0.00024399,2]
[335002788,1723717835057,-540.62,0.00024399,2]
[335002789,1723717835066,-540.62,0.00024399,2]
[335002790,1723717835077,-540.62,0.00024399,2]
[335002791,1723717835087,-540.62,0.00024399,2]
[335002792,1723717835097,-540.62,0.00024399,2]
[335002793,1723717835107,-540.62,0.00024399,2]
[335002794,1723717835117,-540.62,0.00024399,2]
[335002795,1723717835127,-540.62,0.00024399,2]
[335002796,1723717835137,-540.62,0.00024399,2]
[335002797,1723717835146,-540.62,0.00024399,2]
[335002798,1723717835156,-540.62,0.00024399,2]
[335002799,1723717835165,-540.83096054,0.00024399,2]
[335002800,1723717835341,-179.28119514,0.00024399,2]
[335002801,1723717835351,-165050.12991229,0.00024399,11]
[335002802,1723717835367,-600.0,0.00024399,11]
[335002804,1723717838421,-327.97045277,0.00015682,2]
[335002805,1723717838447,-937.27618662,0.00015682,2]
[335002806,1723717838458,-626.77938752,0.00023095,2]
[335002807,1723717838467,-270.976,0.00023886,2]
[335002808,1723717838478,-150.0,0.000241,2]
[335002809,1723717838488,-740.0,0.0002425,2]
[335002810,1723717838498,-23722.35011438,0.00024399,11]
[335002811,1723717838510,-5979.78453988,0.00024399,11]
[335002812,1723717838522,-2440.67190885,0.00024399,11]
[335002813,1723717838726,-557.89365367,0.00024399,11]
[335002814,1723717838737,-33740.1538901,0.00024399,11]
[335002815,1723717838748,-638.76806,0.00024399,11]
[335002846,1723717840278,-292.64347517,0.00014509,2]
[335002847,1723717840288,-204.11,0.00024389,2]
[335002848,1723717840297,-204.11,0.00024389,2]
[335002849,1723717840307,-204.11,0.00024389,2]
[335002850,1723717840317,-204.11,0.00024389,2]
[335002851,1723717840326,-3968.06412907,0.00024399,11]
[335002852,1723717840339,-588.950825,0.00024399,11]
[335002853,1723717840488,-204.11,0.00024389,2]
[335002854,1723717840498,-1832.89551806,0.00024399,11]
[335002855,1723717840520,-46157.95140953,0.00024399,11]
[335002880,1723717843398,-204.11,0.00024389,2]
[335002881,1723717843409,-204.11,0.00024389,2]
[335002882,1723717843418,-204.11,0.00024389,2]
[335002883,1723717843428,-204.11,0.00024389,2]
[335002884,1723717843438,-204.11,0.00024389,2]
[335002885,1723717843448,-204.11,0.00024389,2]
[335002887,1723717843458,-44388.13180859,0.00024399,11]
[335002888,1723717843470,-1170.55462336,0.00024399,11]
[335002889,1723717843484,-467.40676096,0.00024399,11]
[335002890,1723717843495,-824.87273435,0.00024399,11]
[335002891,1723717843507,-603.35590555,0.00024399,11]
[335002896,1723717847840,-204.11,0.00024389,2]
[335002897,1723717847850,-204.11,0.00024389,2]
[335002898,1723717847859,-204.11,0.00024389,2]
[335002899,1723717847868,-204.11,0.00024389,2]
[335002900,1723717847878,-204.11,0.00024389,2]
[335002901,1723717847887,-204.11,0.00024389,2]
[335002902,1723717847896,-204.11,0.00024389,2]
[335002903,1723717847905,-204.11,0.00024389,2]
[335002904,1723717847915,-204.11,0.00024389,2]
[335002905,1723717847924,-204.11,0.00024389,2]
[335002906,1723717847933,-204.11,0.00024389,2]
[335002907,1723717847942,-204.11,0.00024389,2]